{"text_format":"1","workbook":"xlsx","n_sheets":9,"sheets":["（例）考える１","（例）考える２","(例)フローチャート","(例)実行用","(例)試作用","(例)説明","（例）事前確認","（例）ストーリー","(例)著作権者情報"],"not_rendered":{"charts":0,"images":0,"macros":1,"external_links":0,"defined_names":2,"comments":0,"pivot_tables":0},"unopened":[],"bounds":{"document_bytes":16777216,"sheet_cells":100000,"rows_first":2000,"rows_last":500,"rows_between":2000,"halvings":0,"cell_chars":16384,"cell_head_chars":4096},"cells_cut":0,"cells_raw":0,"read":"whole","date_system":"1900"}

{"sheet":"（例）考える１","index":0,"n_rows":11,"n_cols":11,"rows_kept":11,"cut":false,"hidden":false,"merged":[[0,1,1,5],[4,1,4,10],[7,1,7,10],[10,1,10,10]]}
[null,"プログラムを考える（個人）",null,null,null,null,null,"HR","班","HRNO","氏名"]
[null,null,null,null,null,null,null,11,1,1101,"情報太郎"]
[]
[null,"どんなプログラムがあると便利か（おもしろいか）"]
[null,"クラスの編成とか作業を自動でやってくれるもの"]
[]
[null,"どんなプログラムを作ろうとしているか（作りたいか）"]
[null,"クラスの役に立ちそうなプログラム"]
[]
[null,"どうやって作るか（言語、プログラミングの環境、参考にするもの）"]
[null,"ExcelVBAで作る、教科書の例題のコードを組み合わせて作る"]

{"sheet":"（例）考える２","index":1,"n_rows":28,"n_cols":13,"rows_kept":28,"cut":false,"hidden":false,"merged":[[6,3,6,6],[6,9,6,12],[0,1,1,6],[4,3,4,6],[4,9,4,12],[5,3,5,6],[5,9,5,12],[27,1,27,12],[9,1,9,12],[12,1,12,12],[15,1,15,12],[18,1,18,2],[18,3,18,12],[19,1,19,2],[19,3,19,12],[20,1,20,2],[20,3,20,12],[21,1,21,2],[21,3,21,12],[24,1,24,12]]}
[null,"プログラムを考える②（班）",null,null,null,null,null,null,null,"HR","班","HRNO","氏名"]
[null,null,null,null,null,null,null,null,null,11,1,1101,"情報太郎"]
[]
[null,"班のメンバー"]
[null,"NO","HRNO","氏名",null,null,null,"NO","HRNO","氏名"]
[null,1,1101,"情報太郎",null,null,null,3,1103,"情報三郎"]
[null,2,1102,"情報次郎",null,null,null,4,1104,"情報四郎"]
[]
[null,"どんなプログラムがあると便利か（おもしろいか）"]
[null,{"$f":"'（例）考える１'!B5:K5","v":"クラスの編成とか作業を自動でやってくれるもの"}]
[]
[null,"どんなプログラムを作りたいか"]
[null,{"$f":"'（例）考える１'!B8:K8","v":"クラスの役に立ちそうなプログラム"}]
[]
[null,"どうやって作るか（言語、プログラミングの環境、参考にするもの）"]
[null,{"$f":"'（例）考える１'!B11:K11","v":"ExcelVBAで作る、教科書の例題のコードを組み合わせて作る"}]
[]
[null,"メンバーのアドバイス、要望など"]
[null,"メンバー１"]
[null,"メンバー２",null,"部活でつかえそうなもの"]
[null,"メンバー３",null,"計算を勝手にやってくれるのはいいと思う。"]
[null,"メンバー４",null,"家事が楽になるものとかいいかも"]
[]
[null,"アドバイス等を参考に、プログラムの目的を考える"]
[null,"クラスの人数と班の人数を入力して、班と班のメンバーの番号を表示するプログラム"]
[]
[null,"タイトルを決める"]
[null,"班のメンバーを決めるプログラム"]

{"sheet":"(例)フローチャート","index":2,"n_rows":6,"n_cols":10,"rows_kept":6,"cut":false,"hidden":false,"merged":[[4,2,4,9],[3,2,3,9],[0,1,1,4],[5,1,52,9]]}
[null,"フローチャートを作る",null,null,null,null,"HR","班","HRNO","氏名"]
[null,null,null,null,null,null,11,1,1101,"情報太郎"]
[]
[null,"タイトル","班のメンバーを決めるプログラム"]
[null,"目的","クラスの人数と班の人数を入力して、班と班のメンバーの番号を表示するプログラム"]
[null,"フローチャート"]

{"sheet":"(例)実行用","index":3,"n_rows":16,"n_cols":7,"rows_kept":16,"cut":false,"hidden":false,"merged":[]}
[]
[null,"班決めプログラム"]
[]
[null,"クラスNo",11]
[null,"クラスの人数",40]
[null,"班の数",6,null,"ベースの人数","余り"]
[null,"班の人数","6、7人",null,6,4]
[]
[null,"班","始めNo","終わりNo","ベース人数","増えた人数","余りの残り"]
[]
[null,1,1101,1107,6,1,3]
[null,2,1108,1114,6,1,2]
[null,3,1115,1121,6,1,1]
[null,4,1122,1128,6,1,0]
[null,5,1129,1134,6,0,0]
[null,6,1135,1140,6,0,0]

{"sheet":"(例)試作用","index":4,"n_rows":20,"n_cols":7,"rows_kept":20,"cut":false,"hidden":false,"merged":[]}
[]
[null,"班決めプログラム"]
[]
[null,"クラスNo",11]
[null,"クラスの人数",40]
[null,"班の数",6,null,"ベースの人数","余り"]
[null,"班の人数",null,null,{"$f":"INT(C5/C6)","v":6},{"$f":"MOD(C5,C6)","v":4}]
[]
[null,"班","始めNo","終わりNo","ベース人数","残り余り","班の人数"]
[null,null,null,{"$f":"C4*100","v":1100},null,{"$f":"F7","v":4}]
[null,1,{"$f":"C4*100+1","v":1101},{"$f":"D10+G11","v":1107},{"$f":"$E$7","v":6},{"$f":"IF(F10=0,0,F10-1)","v":3},{"$f":"IF(F10>0,E11+1,E11)","v":7}]
[null,2,{"$f":"D11+1","v":1108},{"$f":"D11+G12","v":1114},{"$f":"$E$7","v":6},{"$f":"IF(F11=0,0,F11-1)","v":2},{"$f":"IF(F11>0,E12+1,E12)","v":7}]
[null,3,{"$f":"D12+1","v":1115},1121,6,1,7]
[null,4,1122,1128,6,0,7]
[null,5,1129,1134,6,0,6]
[null,6,1135,1140,6,0,6]
[null,7,1141,1146,6,0,6]
[null,8,1147,1152,6,0,6]
[null,9,1153,1158,6,0,6]
[null,10,1159,1164,6,0,{"$f":"IF(F19>0,E20+1,E20)","v":6}]

{"sheet":"(例)説明","index":5,"n_rows":6,"n_cols":13,"rows_kept":6,"cut":false,"hidden":false,"merged":[[5,1,38,7],[5,8,38,12],[0,1,1,4],[3,2,3,9],[4,2,4,9]]}
[null,"プログラムの説明",null,null,null,null,null,null,null,"HR","班","HRNO","氏名"]
[null,null,null,null,null,null,null,null,null,11,1,1101,"情報太郎"]
[]
[null,"タイトル","班のメンバーを決めるプログラム"]
[null,"目的","クラスの人数と班の人数を入力して、班と班のメンバーの番号を表示するプログラム"]
[null,"プログラム",null,null,null,null,null,null,"説明"]

{"sheet":"（例）事前確認","index":6,"n_rows":22,"n_cols":3,"rows_kept":22,"cut":false,"hidden":false,"merged":[[1,1,1,2],[5,1,8,1],[12,1,14,1],[16,1,17,1]]}
[]
[null,"プレゼンテーション　事前確認シート"]
[]
[null,"①Why\n目的の確認","プレゼンテーションの目的の確認\n　　課題で作ったプログラムの説明をする。　\n話し手の立場\n　　クラスメイト"]
[null,null,"　"]
[null,"②Who\n聞き手","聞き手のプロフィール　年齢分布：    １５～１６歳   ３９名　　４０代　１名\n　　　　　　　　　　　　　　　　性別　：男性：　５０％ 女性：　５０％"]
[null,null,"聞き手の人数　　４０　名"]
[null,null,"聞き手の立場　　クラスメイト、教師、評価を付ける"]
[null,null,"聞き手の関心　\n　　・全員プログラミングの演習をしたので、関心はある。\n　　・\n　　・"]
[]
[null,"③What\nストーリーの\nポイント","伝えたい内容・強調したい項目\n　　・例題の丸写しではないところ\n　　・クラスの役に立つところ\n　　・"]
[]
[null,"④When\n時間","与えられたプレゼンテーション時間　　１分（質疑応答　　０分）"]
[null,null,"実施日時　　　２０２４年２月２１日（水）　開始　８時４０分　終了　８時４１分"]
[null,null,"準備期間　　　２か月"]
[]
[null,"⑤Where\n環境","会場（大きさ，レイアウト，スクリーンの位置など）\n　・１対多の一般的なマスコミ型の形式\n　・聞き手との距離が近い人と\n　　遠い人がいる\n　・セカンドディスプレイがある\n　・Excelが使える"]
[null,null,"環境（調光，室温など）\n　・エアコンがあるが、１基壊れている\n　・\n　・"]
[]
[null,"⑥How\n手段","使用できるプレゼンテーション手段\n　・プロジェクタ　　　　　　・スクリーン\n　・パソコン（ノート・デスクトップ）\n　・スライドを進められる機能が付いたレーザーポインター"]
[]
[null,"⑦その他"]

{"sheet":"（例）ストーリー","index":7,"n_rows":18,"n_cols":6,"rows_kept":18,"cut":false,"hidden":false,"merged":[[8,2,8,4],[1,1,1,4],[2,1,2,5],[3,1,3,5],[5,2,5,5],[6,1,6,5],[17,1,17,4],[9,1,9,4],[11,1,11,2],[12,1,12,2],[13,1,13,2],[14,1,14,2],[16,2,16,4]]}
[]
[null,"プレゼンテーション　ストーリーシート"]
[null,"プレゼンテーションのテーマ（目的）"]
[null,"作ったプログラムのオリジナリティと役に立つことを伝える。"]
[]
[null,"タイトル　"]
[null,"班のメンバーを決めるプログラム"]
[]
[null,"はじめに\n　　",null,null,null,"時間"]
[null,"クラスのために役に立つプログラムを考えて、班のメンバーを決めるプログラムを考えた。",null,null,null,10]
[null,"本題"]
[null,"項目",null,"説明","追加情報"]
[null,"プログラムを動かす",null,"・クラスの数字を入れると、HRNOが出てくる\n・クラスの人数と班の数を入力する\n・ボタンを押すと、班のメンバーのHRNOが出てくる","Excelでプログラムを実行させる",30]
[null,"プログラムの説明",null,"・それぞれ、どのように変数を設定したか\n・全体の人数を班の数で割り、商と余りを出して、余った人数分の班の数＋１する仕組みを伝える\n\n・","ワークシートの試作用のシートと、プログラムの説明を見せる",15]
[null,null,null,"・\n\n・\n\n・"]
[]
[null,"まとめ\n　"]
[null,"長期欠席の人がいたときには対応できないので、どこかに長期欠席の人の番号を入れたら、班の人数を調整するような仕組みを作りたい",null,null,null,5]

{"sheet":"(例)著作権者情報","index":8,"n_rows":25,"n_cols":9,"rows_kept":25,"cut":false,"hidden":false,"merged":[[7,4,7,8],[13,4,13,8],[8,4,8,8],[9,4,9,8],[10,4,10,8],[11,4,11,8],[12,4,12,8],[24,4,24,8],[0,0,1,2],[21,4,21,8],[22,4,22,8],[23,4,23,8],[15,4,15,8],[16,4,16,8],[17,4,17,8],[18,4,18,8],[19,4,19,8],[20,4,20,8],[14,4,14,8],[3,4,3,8],[4,4,4,8],[5,4,5,8],[6,4,6,8]]}
["著作権者情報、参考図書、参考サイト",null,null,null,null,"HR","班","HRNO","氏名"]
[null,null,null,null,null,11,1,1101,"情報太郎"]
[]
["番号","名前","著作権者、サイト名、図書名","URL、ページ数","使用した場所、備考"]
["例","商と余り","インストラクターのネタ帳","https://www.relief.jp/docs/excel-vba-division.html","余りと商の演算子の確認"]
[1]
[2]
[3]
[4]
[5]
[6]
[7]
[8]
[9]
[10]
[11]
[12]
[13]
[14]
[15]
[16]
[17]
[18]
[19]
[20]